bitfinex-derivatives/quotes_ETHF0:USTF0_20250911
["timestamp","ask_amount","ask_price","bid_price","bid_amount"]
[1757575274880,0.5315,4443.0,4442.6,1.4872353]
[1757575275079,0.3099,4442.9,4442.6,1.4872353]
[1757575275274,0.1257,4443.0,4442.2,0.69699]
[1757575275480,0.7157,4442.3,4442.2,0.2067]
[1757575276576,0.7157,4442.3,4442.0,0.231]
[1757575277080,0.2014,4441.4,4441.3,1.6036353]
[1757575277281,0.5113,4441.4,4441.3,0.7002]
[1757575277880,0.7157,4441.4,4441.3,0.4083]
[1757575278276,0.7157,4441.4,4441.3,0.7002]
[1757575279086,0.7157,4441.4,4441.3,0.4083]
[1757575279587,0.7157,4441.4,4441.3,0.2067]
[1757575280783,0.7157,4441.4,4441.3,0.4083]
[1757575281286,0.7157,4441.4,4441.3,0.7002]
[1757575281585,0.3099,4441.4,4441.3,0.7002]
[1757575282683,0.3099,4442.4,4441.8,0.4083]
[1757575282892,0.5113,4441.9,4441.8,1.8955353]
[1757575283081,0.7157,4441.9,4441.8,1.6036353]
[1757575284086,0.7157,4441.9,4441.8,0.4083]
[1757575284292,0.7157,4441.9,4441.8,0.2067]
[1757575284788,0.7157,4441.9,4441.8,0.4083]
[1757575284986,0.7157,4441.9,4441.8,0.7002]
[1757575285292,0.3099,4442.4,4441.8,0.4083]
[1757575285495,0.5113,4442.2,4442.1,1.8955353]
[1757575286192,0.2044,4441.9,4441.8,0.2016]
[1757575286393,0.7157,4441.9,4441.8,0.7002]
[1757575287193,0.1257,4442.5,4441.8,1.8955353]
[1757575287386,0.1257,4442.5,4441.9,0.2987]
[1757575287586,0.72,4442.4,4442.3,0.2051]
[1757575289095,0.4084,4442.4,4441.9,1.4940353]
[1757575289288,0.6362,4442.0,4441.9,1.9026353]
[1757575289798,0.8372,4442.0,4441.9,1.9026353]
[1757575290095,0.8372,4442.0,4441.9,1.6039353]
[1757575291697,0.8372,4442.0,4441.1,0.2987]
[1757575291890,0.3116,4441.9,4441.1,1.4940353]
[1757575292091,0.3116,4441.9,4441.1,0.2987]
[1757575292289,0.72,4441.6,4441.5,1.6039353]
[1757575292892,0.3116,4441.9,4441.6,0.2987]
[1757575293191,0.3116,4441.9,4441.8,1.9026353]
[1757575294097,0.519,4441.9,4441.8,1.9026353]
[1757575295795,0.3116,4442.4,4441.8,1.6039353]
[1757575295985,0.1257,4442.5,4441.9,0.2987]
[1757575296189,0.5341,4442.5,4442.4,0.2051]
[1757575296494,0.5341,4442.5,4441.9,0.2987]
[1757575296696,0.3116,4442.4,4441.9,0.2987]
[1757575296897,0.519,4442.0,4441.9,0.7073]
[1757575297195,0.3116,4442.0,4441.9,0.7073]
[1757575297897,0.519,4442.0,4441.9,0.7073]
[1757575298397,0.8372,4442.0,4441.9,0.7073]
[1757575303998,0.3116,4442.4,4442.3,0.4086]
[1757575304194,0.519,4442.4,4442.3,1.9026353]
[1757575304596,0.72,4442.4,4442.3,1.9026353]
[1757575306402,0.3116,4443.4,4443.3,0.7073]
[1757575306604,0.519,4443.9,4443.8,0.7073]
[1757575308500,0.3116,4444.4,4443.8,0.4086]
[1757575308705,0.519,4444.4,4444.3,0.7073]
[1757575309702,0.72,4444.4,4444.3,0.4086]
[1757575309903,0.72,4444.4,4444.3,0.2051]
[1757575310205,0.72,4444.4,4443.9,0.2987]
[1757575311700,0.72,4444.4,4443.8,1.1953353]
[1757575311701,0.4084,4444.4,4443.8,1.1953353]
[1757575311907,0.3116,4444.3,4443.8,1.4940353]
[1757575312107,0.6362,4444.0,4443.9,3.69790366]
[1757575313507,0.8372,4444.0,4443.9,3.39920366]
[1757575313907,0.8372,4444.0,4443.9,3.69790366]
[1757575317208,0.72,4444.0,4443.9,3.69790366]
[1757575317509,0.4185,4444.5,4443.9,3.39920366]
[1757575317704,0.321,4444.5,4444.4,0.4116]
[1757575317911,0.5344,4444.5,4444.4,0.7299]
[1757575318112,0.5344,4444.5,4444.4,0.2068]
[1757575318313,0.8357,4444.5,4444.0,0.3183]
[1757575319816,0.8357,4444.5,4444.4,0.2068]
[1757575322426,0.8357,4444.5,4444.4,1.17675819]
[1757575324919,0.8357,4444.5,4444.4,0.2068]
[1757575325126,0.8357,4444.5,4444.4,1.69985819]
[1757575325322,0.7185,4444.5,4444.4,1.69985819]
[1757575325518,0.5051,4444.5,4444.4,1.69985819]
[1757575325926,0.5051,4444.5,4444.4,1.38155819]
[1757575325927,0.8442,4444.5,4444.4,1.38155819]
[1757575326414,0.8442,4444.5,4444.4,0.96995819]
[1757575326921,0.8442,4444.5,4444.4,0.2068]
[1757575327119,0.8442,4444.5,4444.4,1.17675819]
[1757575328622,0.7185,4444.5,4444.4,1.69985819]
[1757575328829,0.5051,4444.5,4444.4,1.69985819]
[1757575329124,0.8357,4445.0,4444.9,0.2068]
[1757575330430,0.5344,4445.0,4444.8,0.96995819]
[1757575330631,0.7185,4444.9,4444.8,0.96995819]
[1757575331127,0.1257,4444.5,4444.4,0.2068]
[1757575331431,0.5429,4444.5,4444.1,0.3183]
[1757575331731,0.8442,4444.5,4444.4,0.96995819]
[1757575332728,0.3013,4444.4,4443.5,0.3927]
[1757575333032,0.7185,4444.4,4444.3,0.4116]
[1757575333226,0.7185,4444.4,4444.3,1.69985819]
[1757575333829,0.7185,4444.9,4444.8,0.4116]
[1757575334031,0.7185,4444.9,4444.8,1.69985819]
[1757575336437,0.5051,4444.9,4444.8,2.10471819]
[1757575336630,0.5051,4444.9,4444.8,1.69985819]
[1757575337032,0.7185,4444.9,4444.8,1.69985819]
[1757575337434,0.7185,4444.9,4444.8,1.38155819]
[1757575339540,0.7185,4444.9,4444.8,1.69985819]
[1757575340435,0.1172,4445.5,4444.8,1.69985819]
[1757575340641,0.7185,4445.4,4445.3,0.4116]
[1757575340835,0.7185,4445.4,4445.3,0.2068]
[1757575345946,0.7185,4445.4,4445.1,0.96995819]
[1757575346142,0.4172,4445.4,4445.1,0.96995819]
[1757575346347,0.3013,4445.3,4445.1,0.96995819]
[1757575346648,0.4172,4445.2,4445.1,1.17675819]
[1757575346840,0.7185,4445.2,4445.1,1.17675819]
[1757575347349,0.7185,4445.2,4445.1,1.38155819]
[1757575347542,0.7185,4445.2,4445.1,1.68035819]
[1757575348452,0.7185,4445.2,4445.1,1.38155819]
[1757575348846,0.7185,4445.2,4445.1,0.2068]
[1757575349044,0.7185,4445.2,4444.7,0.40486]
[1757575349045,0.7203,4444.8,4444.7,1.09206]
[1757575349246,0.7203,4444.8,4444.7,2.06201819]
[1757575349750,0.7203,4444.8,4444.7,1.65715819]
[1757575354153,0.4016,4444.2,4444.1,0.6184]
[1757575354455,0.7203,4444.2,4444.1,0.6872]
[1757575354653,0.7203,4444.2,4444.1,1.65715819]
[1757575355857,0.7203,4444.2,4444.1,1.71881218]
[1757575357048,0.1267,4444.5,4444.1,1.71881218]
[1757575357252,0.847,4444.5,4444.4,1.35835819]
[1757575357859,0.847,4444.5,4444.4,1.42001218]
[1757575358058,0.847,4444.5,4444.4,1.71881218]
[1757575359962,0.847,4444.5,4444.4,1.42001218]
[1757575363561,0.847,4444.5,4444.4,1.71881218]
[1757575363856,0.7203,4444.9,4444.8,0.3884]
[1757575364049,0.5114,4444.9,4444.8,0.6872]
[1757575364566,0.5114,4444.9,4444.8,1.65715819]
[1757575364862,0.5114,4444.9,4444.8,1.71881218]
[1757575365665,0.3187,4444.9,4444.8,1.71881218]
[1757575365866,0.3187,4445.4,4444.8,1.42001218]
[1757575366060,0.7203,4445.4,4445.3,1.65715819]
[1757575366369,0.3187,4445.3,4444.8,0.06165399]
[1757575366566,0.7203,4445.1,4445.0,0.96995819]
[1757575366754,0.7203,4445.1,4445.0,1.16295819]
[1757575366957,0.7203,4445.1,4445.0,1.71881218]
[1757575367767,0.5114,4445.1,4445.0,1.71881218]
[1757575369268,0.7203,4445.1,4445.0,1.71881218]
[1757575369564,0.1927,4445.2,4445.1,0.6872]
[1757575369869,0.5114,4445.2,4445.1,1.65715819]
[1757575370166,0.5114,4445.2,4445.1,1.71881218]
[1757575370965,0.3187,4445.2,4445.1,1.71881218]
[1757575371169,0.5114,4445.2,4445.1,1.71881218]
[1757575372466,0.7203,4445.2,4445.1,1.71881218]
[1757575373270,0.7203,4445.2,4445.1,1.03161218]
[1757575373664,0.7203,4445.2,4445.1,0.06165399]
[1757575374070,0.7203,4445.2,4445.1,0.25465399]
[1757575376066,0.7203,4445.2,4445.1,0.74885399]
[1757575377174,0.7203,4445.2,4445.1,0.45005399]
[1757575378586,0.7203,4445.2,4445.1,0.74765399]
[1757575380980,0.7203,4445.2,4445.1,0.45005399]
[1757575381988,0.7203,4445.2,4445.1,0.25465399]
[1757575385291,0.7203,4445.2,4445.1,0.06165399]
[1757575387584,0.7203,4445.2,4445.1,0.27355399]
[1757575388389,0.7203,4445.2,4445.1,0.06165399]
[1757575389991,4.7203,4445.2,4445.1,0.06165399]
[1757575391586,0.7203,4445.2,4445.1,0.06165399]
[1757575396299,0.7197,4443.7,4443.6,0.714]
[1757575401095,0.7197,4443.7,4443.6,0.4164]
[1757575401302,0.1177,4443.5,4443.4,0.2119]
[1757575401802,0.5245,4443.5,4443.4,1.90834024]
[1757575402001,0.8374,4443.5,4443.4,1.90834024]
[1757575402304,0.8374,4443.5,4443.4,0.714]
[1757575402502,0.8374,4443.5,4443.4,1.90834024]
[1757575404097,0.7197,4443.5,4443.4,1.90834024]
[1757575404302,0.7197,4443.9,4443.8,0.2045]
[1757575404505,0.1177,4443.0,4442.8,0.2976]
[1757575404798,0.1177,4443.0,4442.4,0.4164]
[1757575404799,0.5245,4442.5,4442.4,0.4164]
[1757575405006,0.5245,4442.5,4442.1,0.2976]
[1757575405205,0.7197,4442.2,4442.1,0.714]
[1757575405897,0.3129,4442.4,4442.1,0.4164]
[1757575406102,0.1177,4443.0,4442.4,0.2976]
[1757575406303,0.5245,4443.0,4442.9,0.2119]
[1757575406504,0.1177,4443.5,4443.0,0.4164]
[1757575406705,0.2036,4443.2,4443.1,0.714]
[1757575406900,0.5165,4443.2,4443.1,0.714]
[1757575407307,0.7197,4443.2,4443.1,0.2119]
[1757575407508,0.3185,4443.0,4442.9,0.2074]
[1757575407806,0.5251,4443.0,4442.9,0.4141]
[1757575408107,0.842,4443.0,4442.9,0.7213]
[1757575408407,0.842,4443.0,4442.9,0.4141]
[1757575408905,0.842,4443.0,4442.9,0.7213]
[1757575410803,0.842,4443.0,4442.5,0.229]
[1757575411502,0.5251,4443.0,4442.5,0.5362]
[1757575411708,0.5128,4442.9,4442.8,0.4141]
[1757575411913,0.7194,4442.9,4442.8,0.7213]
[1757575414311,0.5235,4442.9,4442.8,0.7213]
[1757575416015,0.7194,4442.9,4442.6,1.19434024]
[1757575416311,0.7194,4442.9,4440.5,0.1168]
[1757575416312,0.7194,4442.1,4442.0,0.7213]
[1757575417917,0.7194,4442.1,4442.0,0.4141]
[1757575418503,0.4025,4442.1,4441.8,1.19434024]
[1757575418812,0.842,4441.5,4441.4,1.60844024]
[1757575419007,0.81803803,4441.5,4441.4,1.91564024]
[1757575421816,0.3169,4441.5,4441.4,1.91564024]
[1757575422813,0.3292,4442.0,4441.9,0.2074]
[1757575423008,0.842,4442.0,4441.9,0.2074]
[1757575428415,0.2066,4442.1,4442.0,0.4141]
[1757575428623,0.5235,4442.1,4442.0,0.7213]
[1757575428820,0.1226,4443.0,4442.3,0.4141]
[1757575429121,0.5251,4443.0,4442.9,1.91564024]
[1757575429321,0.5251,4443.0,4442.9,0.7213]
[1757575429524,0.842,4443.0,4442.9,0.4141]
[1757575433725,0.842,4443.0,4442.9,0.7213]
[1757575433919,0.842,4443.0,4442.9,0.4141]
[1757575435523,0.842,4443.0,4442.9,0.7213]
[1757575435827,0.842,4443.0,4442.9,1.91564024]
[1757575437430,0.842,4443.0,4442.9,0.7213]
[1757575438431,0.842,4443.0,4442.9,1.91564024]
[1757575439920,0.1226,4444.0,4443.4,0.707]
[1757575440127,0.6282,4444.0,4443.9,1.60734024]
[1757575440326,0.8304,4444.0,4443.9,1.60734024]
[1757575440927,0.8304,4444.0,4443.5,1.19434024]
[1757575441124,0.397,4443.6,4443.5,1.40404024]
[1757575441326,0.7078,4443.6,4443.5,1.40404024]
[1757575442335,0.7078,4443.6,4443.2,0.229]
[1757575442530,0.7078,4442.9,4442.8,0.707]
[1757575442831,0.7078,4442.9,4442.8,0.413]
[1757575443133,0.8238,4442.5,4442.4,0.229]
[1757575443330,0.2022,4442.0,4441.9,1.90134024]
[1757575443522,0.513,4442.0,4441.9,1.90134024]
[1757575444125,0.116,4442.5,4441.9,1.90134024]
[1757575444331,0.8238,4443.0,4442.9,0.413]
[1757575444526,0.8238,4443.0,4442.9,1.38333966]
[1757575444930,0.3108,4443.0,4442.9,1.67733966]
[1757575445132,0.116,4443.5,4442.9,1.38333966]
[1757575445338,0.513,4443.5,4443.4,1.18003966]
[1757575445938,0.8238,4443.5,4443.4,1.67733966]
[1757575446437,0.513,4443.5,4443.4,1.67733966]
[1757575449638,0.3108,4443.5,4443.4,1.67733966]
[1757575449941,0.8304,4444.0,4443.5,0.294]
[1757575450233,0.5196,4444.0,4443.8,0.97033966]
[1757575450430,0.7078,4443.9,4443.8,0.97033966]
[1757575452839,0.7078,4443.9,4443.5,0.97033966]
[1757575453037,0.3108,4443.8,4443.5,0.97033966]
[1757575453238,0.7078,4443.6,4443.5,0.97033966]
[1757575453736,0.7078,4443.6,4443.5,1.18003966]
[1757575455741,0.4268,4443.5,4443.2,1.26433966]
[1757575455942,0.7078,4443.3,4443.2,1.47403966]
[1757575456142,0.7078,4443.3,4443.2,1.67733966]
[1757575456843,0.513,4443.3,4443.2,1.67733966]
[1757575458945,0.3108,4443.3,4443.2,1.67733966]
[1757575460144,0.3108,4443.9,4443.3,0.294]
[1757575460350,0.7078,4443.9,4443.8,1.18003966]
[1757575461551,0.7078,4443.9,4443.8,1.67733966]
[1757575462052,0.7078,4443.9,4443.8,1.38333966]
[1757575465863,0.7078,4443.9,4443.1,0.294]
[1757575466064,0.3108,4443.8,4443.6,0.97033966]
[1757575466361,0.7078,4443.4,4443.3,0.5037]
[1757575466562,0.7078,4443.4,4443.3,1.47403966]
[1757575466863,0.7078,4443.4,4443.3,1.67733966]
[1757575467162,0.7078,4443.4,4443.3,0.707]
[1757575467460,0.7078,4443.4,4443.3,1.67733966]
[1757575470763,0.513,4443.4,4443.3,1.67733966]
[1757575471155,0.513,4443.4,4443.3,0.707]
[1757575471356,0.513,4443.4,4442.9,0.6906]
[1757575471357,0.7265,4443.9,4443.8,0.2134]
[1757575471554,0.7265,4443.9,4443.8,1.18373966]
[1757575473964,0.5162,4443.9,4443.8,1.70273966]
[1757575474563,0.7265,4443.9,4443.8,1.70273966]
[1757575474963,0.7265,4443.9,4443.8,1.39053966]
[1757575476967,0.116,4444.5,4443.8,1.39053966]
[1757575477262,0.5162,4444.4,4444.3,0.7324]
[1757575478365,0.5162,4444.4,4444.3,1.70273966]
[1757575482259,0.7265,4444.4,4444.3,1.70273966]
[1757575488873,0.7265,4444.4,4443.5,0.0984]
[1757575489077,0.3149,4443.9,4443.1,0.3122]
[1757575489378,0.8454,4443.5,4443.4,1.18373966]
[1757575489677,0.8454,4443.5,4443.4,1.39053966]
[1757575489868,0.8454,4443.5,4443.4,1.70273966]
[1757575490071,0.8454,4443.5,4443.4,1.39053966]
[1757575490979,0.8454,4443.5,4443.4,0.2134]
[1757575491177,0.8454,4443.5,4443.1,0.3122]
[1757575491378,0.5305,4443.5,4443.1,0.97033966]
[1757575491565,0.7265,4443.2,4443.1,1.18373966]
[1757575492477,0.7265,4443.2,4443.1,1.39053966]
[1757575492679,0.7265,4443.2,4443.1,1.70273966]
[1757575497682,0.8471,4443.0,4442.9,0.4616]
[1757575498184,0.7252,4442.9,4442.8,0.2107]
[1757575499481,0.3181,4442.8,4442.7,0.97033966]
[1757575499779,0.1219,4443.0,4442.7,0.97033966]
[1757575500086,0.5186,4442.8,4442.7,0.715]
[1757575500478,0.7252,4442.8,4442.7,0.715]
[1757575500679,0.7252,4442.8,4442.4,0.3036]
[1757575500986,0.7252,4442.4,4442.3,0.2107]
[1757575502282,0.7252,4442.4,4442.3,0.5143]
[1757575502584,0.7252,4442.4,4442.3,0.715]
[1757575503182,0.7252,4442.4,4441.9,0.3036]
[1757575503394,0.7252,4441.7,4441.6,0.2107]
[1757575503784,0.7252,4441.7,4441.6,0.715]
[1757575505290,0.3181,4441.7,4441.6,0.715]
[1757575505482,0.3181,4441.9,4441.7,0.3036]
[1757575505683,0.3181,4441.9,4441.8,1.68533966]
[1757575505990,0.2005,4442.4,4442.3,0.4114]
[1757575506196,0.5186,4442.4,4442.3,1.68533966]
[1757575506387,0.5186,4442.4,4442.3,0.715]
[1757575506885,0.54753972,4442.4,4442.3,0.715]
[1757575509485,0.02893972,4442.4,4442.3,0.715]
[1757575509886,0.54753972,4442.4,4442.3,0.715]
[1757575512195,0.02893972,4442.4,4442.3,0.715]
[1757575512991,0.02893972,4442.4,4442.3,3.65003961]
[1757575513489,0.5186,4443.4,4443.3,0.4114]
[1757575513791,0.7252,4443.4,4443.3,0.715]
[1757575514193,0.7252,4443.4,4443.3,0.4114]
[1757575516396,0.7252,4443.4,4443.3,0.2107]
[1757575516692,0.7252,4443.4,4443.0,0.3036]
[1757575517196,0.5186,4442.6,4442.5,0.715]
[1757575517593,0.3181,4442.6,4442.5,0.715]
[1757575518098,0.8471,4442.5,4442.4,1.40635147]
[1757575518288,0.8471,4442.5,4442.4,1.91065147]
[1757575518588,0.5186,4442.5,4442.4,1.91065147]
[1757575519082,0.3181,4442.9,4442.4,1.60705147]
[1757575519288,0.8471,4443.0,4442.9,0.715]
[1757575520193,0.3181,4443.0,4442.9,0.715]
[1757575520495,0.099,4443.8,4443.0,0.3036]
[1757575520696,0.2005,4443.1,4443.0,0.2007]
[1757575520889,0.5186,4443.1,4443.0,0.715]
[1757575521496,0.7252,4443.1,4443.0,0.715]
[1757575521900,0.7252,4443.1,4443.0,0.4114]
[1757575522898,0.44,4443.0,4442.8,1.19565147]
[1757575523195,0.7252,4442.9,4442.8,1.91065147]
[1757575526096,0.3181,4442.9,4442.8,1.91065147]
[1757575526694,0.5186,4442.9,4442.8,1.91065147]
[1757575526901,0.7252,4442.9,4442.8,1.91065147]
[1757575527094,0.7252,4442.9,4442.8,0.715]
[1757575527300,0.7252,4442.9,4442.8,0.4114]
[1757575528501,0.7252,4442.9,4442.8,0.7128]
[1757575532401,0.3033,4443.4,4442.8,0.4114]
[1757575532608,0.706,4443.4,4443.3,0.2073]
[1757575532808,0.706,4443.4,4443.3,0.7052]
[1757575533304,0.706,4443.4,4443.3,0.4038]
[1757575535202,0.706,4443.4,4443.3,0.7052]
[1757575535412,0.706,4443.4,4443.3,0.4038]
[1757575535705,0.706,4443.4,4443.3,0.7052]
[1757575536005,0.4027,4443.4,4443.2,0.4945]
[1757575536205,0.706,4443.3,4443.2,0.9924]
[1757575536396,0.706,4443.3,4443.2,0.8983]
[1757575536795,0.706,4443.3,4443.2,1.1997]
[1757575537903,0.706,4443.3,4443.2,0.7018]
[1757575538104,0.706,4443.3,4443.2,0.8983]
[1757575538302,0.706,4443.3,4443.2,1.1997]
[1757575540099,0.706,4443.3,4443.2,0.8983]
[1757575540302,0.706,4443.3,4443.2,0.4945]
[1757575541306,0.706,4443.3,4443.2,0.7018]
[1757575544699,0.706,4443.3,4443.2,0.4945]
[1757575544897,0.706,4443.3,4441.5,0.127]
[1757575544898,5.5307,4443.3,4441.5,0.127]
[1757575545104,5.5307,4443.3,4440.0,0.127]
[1757575545105,1.19565147,4441.6,4440.0,0.127]
[1757575545407,1.19565147,4440.1,4440.0,0.127]
[1757575545604,1.19565147,4440.1,4439.5,0.127]
[1757575546103,1.19565147,4439.6,4439.5,0.127]
[1757575546303,1.19565147,4439.6,4439.0,0.127]
[1757575546505,1.19565147,4440.2,4439.0,0.5597]
[1757575546802,0.232,4440.1,4439.0,0.5597]
[1757575546997,1.19565147,4440.2,4439.3,0.4327]
[1757575547308,1.19565147,4440.2,4439.0,0.127]
[1757575547309,0.232,4440.1,4439.6,0.5087]
[1757575547502,0.232,4440.1,4440.0,0.4284]
[1757575548708,0.45722001,4440.1,4440.0,0.4284]
[1757575549108,1.19565147,4440.6,4440.0,0.4284]
[1757575549307,0.232,4440.1,4440.0,0.3343]
[1757575549606,0.232,4440.1,4440.0,0.5308]
[1757575549801,0.232,4440.1,4440.0,0.6357]
[1757575551099,1.19565147,4440.3,4440.0,0.6357]
[1757575551408,0.232,4440.2,4440.1,0.5087]
[1757575553610,1.19565147,4440.3,4440.2,0.3014]
[1757575553800,1.42665147,4440.3,4440.2,0.5087]
[1757575554409,0.231,4440.3,4440.2,0.7052]
[1757575554610,1.19565147,4440.7,4440.5,0.127]
[1757575554812,0.231,4440.6,4440.5,0.4284]
[1757575558111,0.231,4440.6,4440.5,0.6357]
[1757575558610,0.231,4440.6,4440.5,0.8366]
[1757575559809,1.19565147,4440.7,4440.6,0.3066]
[1757575560010,1.42665147,4440.7,4440.6,0.5159]
[1757575560607,1.42665147,4440.7,4440.6,0.7168]
[1757575560916,32.416,4441.0,4440.6,0.7168]
[1757575561102,1.42665147,4440.9,4440.8,0.2093]
[1757575561300,1.42665147,4440.9,4440.8,0.3066]
[1757575566821,1.42665147,4440.9,4440.8,0.5159]
[1757575567715,1.65175147,4440.9,4440.8,0.5159]
[1757575568318,1.42814718,4440.9,4440.8,0.5159]
[1757575571215,1.42814718,4440.9,4440.6,0.3066]
[1757575571517,0.97204718,4440.7,4440.6,0.3066]
[1757575571717,1.20304718,4440.7,4440.6,0.3066]
[1757575576511,0.7036,4440.1,4439.5,0.127]
[1757575576714,0.7036,4440.1,4440.0,0.2254]
[1757575576914,0.9336,4440.1,4440.0,0.4347]
[1757575577209,0.9336,4440.1,4440.0,0.2254]
[1757575577519,0.9336,4440.1,4440.0,0.4347]
[1757575577819,1.90564718,4440.1,4440.0,0.4347]
[1757575578914,1.90564718,4440.1,4440.0,0.2254]
[1757575579722,1.90564718,4440.1,4440.0,0.4347]
[1757575581318,0.1173,4440.0,4439.5,0.127]
[1757575581619,1.67564718,4439.6,4439.5,0.5372]
[1757575581818,2.13084718,4439.6,4439.5,0.5372]
[1757575582022,2.13084718,4439.6,4439.5,0.7626]
[1757575584428,1.42724718,4439.6,4439.5,0.7626]
[1757575585116,1.62214718,4439.6,4439.5,0.7626]
[1757575586229,2.13084718,4439.6,4439.5,0.6356]
[1757575586428,2.13084718,4439.6,4439.5,0.4347]
[1757575587330,2.13084718,4439.6,4439.5,0.7523]
[1757575588832,2.13084718,4439.6,4439.5,0.9637]
[1757575590129,2.13084718,4439.6,4439.5,1.0882]
[1757575590327,1.90084718,4439.6,4439.5,1.0882]
[1757575590536,0.4552,4439.6,4439.5,1.0882]
[1757575591034,0.2252,4439.6,4439.5,1.0882]
[1757575591234,0.4552,4439.6,4439.5,1.0882]
[1757575591431,2.14454718,4439.6,4439.5,1.0882]
[1757575591637,2.14454718,4439.6,4439.5,0.9637]
[1757575592732,2.14454718,4439.6,4439.5,0.7523]
[1757575592943,2.14454718,4439.6,4439.5,0.2254]
[1757575598249,2.14454718,4439.6,4439.5,0.7562]
[1757575598650,2.14454718,4439.6,4439.5,0.2254]
[1757575599242,2.14454718,4439.6,4439.3,0.3176]
[1757575599448,0.7173,4439.4,4439.3,0.3176]
[1757575599648,0.7173,4439.4,4439.3,0.7562]
[1757575599859,0.7173,4439.4,4439.3,0.9676]
[1757575603855,0.6316,4439.4,4439.3,0.9676]
[1757575604046,0.9463,4439.4,4439.3,0.9676]
[1757575605652,0.2252,4439.6,4439.3,0.9676]
[1757575605849,0.229,4439.7,4439.5,0.7745]
[1757575606053,0.229,4439.7,4439.6,0.7422]
[1757575606255,0.229,4439.7,4439.6,0.9676]
[1757575607154,0.4542,4439.7,4439.6,0.9676]
[1757575607855,0.2252,4439.7,4439.6,0.9676]
[1757575610062,1.20104718,4440.3,4440.2,0.7422]
[1757575610357,0.97204718,4440.3,4440.2,0.7422]
[1757575610654,32.8186,4441.0,4440.9,0.2132]
[1757575610860,34.33434718,4441.0,4440.9,0.7422]
[1757575613661,34.10534718,4441.0,4440.9,0.7422]
[1757575613958,34.33434718,4441.0,4440.9,0.7422]
[1757575615253,33.79064718,4441.0,4440.9,0.7422]
[1757575615459,33.81644718,4441.0,4440.9,0.7422]
[1757575615862,32.9301,4441.0,4440.9,0.7422]
[1757575616053,34.33434718,4441.0,4440.9,0.7422]
[1757575617662,34.10534718,4441.0,4440.9,0.7422]
[1757575617864,34.33434718,4441.0,4440.9,0.7422]
[1757575618260,34.33434718,4441.0,4440.9,0.5308]
[1757575618463,34.33434718,4441.0,4440.9,0.7331]
[1757575620864,34.10534718,4441.0,4440.9,0.7331]
[1757575621061,34.33434718,4441.0,4440.9,0.7331]
[1757575622063,34.33434718,4441.0,4440.9,0.5308]
[1757575622658,34.33434718,4441.0,4440.0,0.1245]
[1757575622868,33.4895,4441.0,4440.6,0.318]
[1757575623064,33.4895,4441.0,4440.1,0.318]
[1757575623965,1.48824718,4440.2,4440.1,0.7257]
[1757575624972,1.18174718,4440.2,4440.1,0.7257]
[1757575625768,1.48824718,4440.2,4440.1,0.7257]
[1757575625970,1.18174718,4440.2,4440.1,0.7257]
[1757575626266,0.97204718,4440.2,4440.1,0.7257]
[1757575627369,0.97204718,4440.2,4440.1,4.7257]
[1757575628066,1.69424718,4440.2,4440.1,0.7257]
[1757575628765,0.3065,4440.1,4439.5,0.1245]
[1757575628970,1.38774718,4440.2,4439.6,0.5234]
[1757575628971,0.7222,4439.7,4439.6,0.5234]
[1757575629169,0.4157,4439.7,4439.6,0.7257]
[1757575629471,0.2097,4439.7,4439.6,0.7257]
[1757575629769,0.3065,4440.0,4439.7,0.318]
[1757575630173,0.97204718,4439.8,4439.7,0.7257]
[1757575630365,1.19737762,4439.8,4439.7,0.7257]
[1757575631072,1.40707762,4440.2,4440.1,0.7257]
[1757575631272,1.71357762,4440.2,4440.1,0.7257]
[1757575632073,1.19737762,4440.2,4440.1,0.7257]
[1757575632369,1.94257762,4440.6,4440.5,0.7257]
[1757575632572,1.94257762,4440.6,4440.5,0.8442]
[1757575632776,2.14857762,4440.6,4440.5,0.8442]
[1757575633075,1.91957762,4440.6,4440.5,0.8442]
[1757575634076,1.61307762,4440.6,4440.5,0.8442]
[1757575635079,1.40707762,4440.6,4440.5,0.8442]
[1757575636778,1.19737762,4440.6,4440.5,0.8442]
[1757575636975,0.2097,4441.1,4441.0,0.5262]
[1757575637175,1.71357762,4441.1,4441.0,0.5262]
[1757575637475,1.91957762,4441.1,4441.0,0.8442]
[1757575637779,1.91957762,4441.1,4441.0,0.7257]
[1757575638882,1.91957762,4441.1,4441.0,0.8442]
[1757575639983,0.7222,4441.1,4441.0,0.8442]
[1757575640283,1.91957762,4441.1,4441.0,0.8442]
[1757575641179,0.2097,4441.1,4441.0,0.8442]
[1757575641384,1.40707762,4441.1,4441.0,0.8442]
[1757575642284,0.301,4442.9,4442.4,0.318]
[1757575642479,1.19737762,4442.7,4442.6,0.4077]
[1757575642687,0.301,4443.2,4442.6,0.4077]
[1757575642984,1.19737762,4442.7,4442.6,0.4077]
[1757575643386,1.40707762,4442.7,4442.6,0.7257]
[1757575644789,1.19737762,4442.9,4442.7,0.318]
[1757575644983,0.2097,4442.8,4442.7,0.318]
[1757575645189,0.4157,4442.8,4442.7,0.7257]
[1757575645497,0.7167,4442.8,4442.7,0.7257]
[1757575645889,0.4157,4442.8,4442.7,0.7257]
[1757575646184,0.7167,4442.8,4442.5,0.4365]
[1757575646488,0.7167,4442.7,4442.6,0.318]
[1757575646788,0.7167,4442.7,4442.0,0.1185]
[1757575646986,1.61307762,4442.1,4442.0,0.1185]
[1757575647186,1.91407762,4442.1,4442.0,0.4365]
[1757575647583,1.91407762,4442.1,4442.0,0.318]
[1757575647787,1.91407762,4442.1,4441.6,0.316]
[1757575647977,1.59377762,4441.7,4441.6,0.5217]
[1757575648887,1.89447762,4441.7,4441.6,0.5217]